Workbook

Sheet 2021-2022年度预拨资金
A1: 2021-2022年度新能源汽车推广应用补助资金预拨情况表
A2: 地区 | B2: 序号 | C2: 企业名称 | D2: 此次拟预拨资金 （万元） | E2: 此前待扣回预拨资金 （万元） | F2: 备注：企业此次应得预拨资金为“此次拟预拨资金”减去“此前待扣回预拨资金”
A3: 北京市 | B3: 小计 | D3: =SUM(D4:D5) -> 15145 | E3: =SUM(E4:E5) -> 0
B4: 1 | C4: 北京汽车股份有限公司 | D4: 8409 | E4: 0
B5: 2 | C5: 北汽福田汽车股份有限公司 | D5: 6736 | E5: 0
A6: 天津市 | B6: 小计 | D6: =SUM(D7) -> 469 | E6: =SUM(E7) -> 0
B7: 1 | C7: 一汽丰田汽车有限公司 | D7: 469 | E7: 0
A8: 河北省 | B8: 小计 | D8: =SUM(D9:D11) -> 42712 | E8: =SUM(E9:E11) -> 34019
B9: 1 | C9: 长城汽车股份有限公司 | D9: 39333 | E9: 29479
B10: 2 | C10: 保定长安客车制造有限公司 | D10: 2704 | E10: 4540
B11: 3 | C11: 河北长安汽车有限公司 | D11: 675 | E11: 0
A12: 山西省 | B12: 小计 | D12: =SUM(D13) -> 6180 | E12: =SUM(E13) -> 25
B13: 1 | C13: 山西新能源汽车工业有限公司 | D13: 6180 | E13: 25
A14: 内蒙古自治区 | B14: 小计 | D14: =SUM(D15) -> 308 | E14: =SUM(E15) -> 95
B15: 1 | C15: 北奔重型汽车集团有限公司 | D15: 308 | E15: 95
A16: 吉林省 | B16: 小计 | D16: =SUM(D17:D18) -> 66324 | E16: =SUM(E17:E18) -> 30157
B17: 1 | C17: 一汽-大众汽车有限公司 | D17: 39794 | E17: 30157
B18: 2 | C18: 中国第一汽车集团有限公司 | D18: 26530 | E18: 0
A19: 上海市 | B19: 小计 | D19: =SUM(D20:D26) -> 297588 | E19: =SUM(E20:E26) -> 167080
B20: 1 | C20: 特斯拉(上海)有限公司 | D20: 194644 | E20: 102737
B21: 2 | C21: 上汽大众汽车有限公司 | D21: 38184 | E21: 29726
B22: 3 | C22: 上海汽车集团股份有限公司 | D22: 37002 | E22: 17419
B23: 4 | C23: 上汽通用汽车有限公司 | D23: 16969 | E23: 9854
B24: 5 | C24: 上汽大通汽车有限公司 | D24: 6002 | E24: 3230
B25: 6 | C25: 上海申沃客车有限公司 | D25: 3029 | E25: 3752
B26: 7 | C26: 上海万象汽车制造有限公司 | D26: 1758 | E26: 362
A27: 江苏省 | B27: 小计 | D27: =SUM(D28:D34) -> 24620 | E27: =SUM(E28:E34) -> 4040
B28: 1 | C28: 南京金龙客车制造有限公司 | D28: 6543 | E28: 0
B29: 2 | C29: 江苏吉麦新能源车业有限公司 | D29: 2640 | E29: 0
B30: 3 | C30: 枫盛汽车(江苏)有限公司 | D30: 3785 | E30: 0
B31: 4 | C31: 徐州徐工汽车制造有限公司 | D31: 2431 | E31: 1938
B32: 5 | C32: 扬州亚星客车股份有限公司 | D32: 1570 | E32: 0
B33: 6 | C33: 北汽蓝谷麦格纳汽车有限公司 | D33: 3176 | E33: 2102
B34: 7 | C34: 金龙联合汽车工业（苏州）有限公司 | D34: 4475 | E34: 0
A35: 浙江省 | B35: 小计 | D35: =SUM(D36:D42) -> 138842 | E35: =SUM(E36:E42) -> 90133
B36: 1 | C36: 浙江豪情汽车制造有限公司 | D36: 48163 | E36: 22599
B37: 2 | C37: 合众新能源汽车股份有限公司 | D37: 54329 | E37: 35536
B38: 3 | C38: 威马汽车制造温州有限公司 | D38: 6651 | E38: 0
B39: 4 | C39: 零跑汽车有限公司 | D39: 27193 | E39: 31998
B40: 5 | C40: 浙江新吉奥汽车有限公司 | D40: 1648 | E40: 0
B41: 6 | C41: 浙江飞碟汽车制造有限公司 | D41: 584 | E41: 0
B42: 7 | C42: 湖州远程汽车有限公司 | D42: 274 | E42: 0
A43: 宁波市 | B43: 小计 | D43: =SUM(D44:D45) -> 46434 | E43: =SUM(E44:E45) -> 32565
B44: 1 | C44: 浙江吉利汽车有限公司 | D44: 46288 | E44: 32565
B45: 2 | C45: 浙江中车电车有限公司 | D45: 146 | E45: 0
A46: 安徽省 | B46: 小计 | D46: =SUM(D47:D50) -> 96022 | E46: =SUM(E47:E50) -> 37587
B47: 1 | C47: 安徽江淮汽车集团股份有限公司 | D47: 59633 | E47: 17289
B48: 2 | C48: 奇瑞新能源汽车股份有限公司 | D48: 28746 | E48: 20166
B49: 3 | C49: 奇瑞商用车(安徽)有限公司 | D49: 4628 | E49: 132
B50: 4 | C50: 安徽华菱汽车有限公司 | D50: 3015 | E50: 0
A51: 福建省 | B51: 小计 | D51: =SUM(D52:D53) -> 994 | E51: =SUM(E52:E53) -> 0
B52: 1 | C52: 福建新龙马汽车股份有限公司 | D52: 527 | E52: 0
B53: 2 | C53: 中国重汽集团福建海西汽车有限公司 | D53: 467 | E53: 0
A54: 厦门市 | B54: 小计 | D54: =SUM(D55:D56) -> 8464 | E54: =SUM(E55:E56) -> 0
B55: 1 | C55: 厦门金龙旅行车有限公司 | D55: 4060 | E55: 0
B56: 2 | C56: 厦门金龙联合汽车工业有限公司 | D56: 4404 | E56: 0
A57: 江西省 | B57: 小计 | D57: =SUM(D58:D60) -> 6722 | E57: =SUM(E58:E60) -> 3367
B58: 1 | C58: 江西吉利新能源商用车有限公司 | D58: 3340 | E58: 3367
B59: 2 | C59: 江铃汽车股份有限公司 | D59: 1216 | E59: 0
B60: 3 | C60: 江西江铃集团新能源汽车有限公司 | D60: 2166 | E60: 0
A61: 山东省 | B61: 小计 | D61: =SUM(D62:D66) -> 11333 | E61: =SUM(E62:E66) -> 1363
B62: 1 | C62: 山东国金汽车制造有限公司 | D62: 5516 | E62: 0
B63: 2 | C63: 潍柴新能源商用车有限公司 | D63: 884 | E63: 913
B64: 3 | C64: 中通客车股份有限公司 | D64: 4123 | E64: 0
B65: 4 | C65: 山东凯马汽车制造有限公司 | D65: 369 | E65: 450
B66: 5 | C66: 中国重汽集团济南商用车有限公司 | D66: 441 | E66: 0
A67: 青岛市 | B67: 小计 | D67: =SUM(D68) -> 187 | E67: =SUM(E68) -> 0
B68: 1 | C68: 一汽解放青岛汽车有限公司 | D68: 187 | E68: 0
A69: 河南省 | B69: 小计 | D69: =SUM(D70:D73) -> 14686 | E69: =SUM(E70:E73) -> 877
B70: 1 | C70: 宇通客车股份有限公司 | D70: 10662 | E70: 0
B71: 2 | C71: 郑州宇通集团有限公司 | D71: 2158 | E71: 210
B72: 3 | C72: 郑州日产汽车有限公司 | D72: 539 | E72: 667
B73: 4 | C73: 郑州宇通重工有限公司 | D73: 1327 | E73: 0
A74: 湖北省 | B74: 小计 | D74: =SUM(D75:D76) -> 9412 | E74: =SUM(E75:E76) -> 2493
B75: 1 | C75: 东风本田汽车有限公司 | D75: 7628 | E75: 2493
B76: 2 | C76: 湖北星晖新能源智能汽车有限公司 | D76: 1784 | E76: 0
A77: 湖南省 | B77: 小计 | D77: =SUM(D78:D80) -> 7420 | E77: =SUM(E78:E80) -> 0
B78: 1 | C78: 三一汽车制造有限公司 | D78: 3224 | E78: 0
B79: 2 | C79: 中车时代电动汽车股份有限公司 | D79: 2973 | E79: 0
B80: 3 | C80: 长沙中联重科环境产业有限公司 | D80: 1223 | E80: 0
A81: 广东省 | B81: 小计 | D81: =SUM(D82:D87) -> 172845 | E81: =SUM(E82:E87) -> 102890
B82: 1 | C82: 广汽乘用车有限公司 | D82: 107742 | E82: 66306
B83: 2 | C83: 肇庆小鹏新能源投资有限公司 | D83: 58049 | E83: 34411
B84: 3 | C84: 广汽丰田汽车有限公司 | D84: 2798 | E84: 0
B85: 4 | C85: 东莞中汽宏远汽车有限公司 | D85: 650 | E85: 1229
B86: 5 | C86: 珠海广通汽车有限公司 | D86: 1039 | E86: 944
B87: 6 | C87: 广汽本田汽车有限公司 | D87: 2567 | E87: 0
A88: 深圳市 | B88: 小计 | D88: =SUM(D89) -> 240929 | E88: =SUM(E89) -> 189511
B89: 1 | C89: 比亚迪汽车工业有限公司 | D89: 240929 | E89: 189511
A90: 广西壮族自治区 | B90: 小计 | D90: =SUM(D91:D94) -> 22150 | E90: =SUM(E91:E94) -> 6618
B91: 1 | C91: 上汽通用五菱汽车股份有限公司 | D91: 16884 | E91: 5312
B92: 2 | C92: 广西汽车集团有限公司 | D92: 3365 | E92: 0
B93: 3 | C93: 广西申龙汽车制造有限公司 | D93: 1363 | E93: 532
B94: 4 | C94: 广西玉柴新能源汽车有限公司 | D94: 538 | E94: 774
A95: 重庆市 | B95: 小计 | D95: =SUM(D96:D102) -> 72245 | E95: =SUM(E96:E102) -> 17740
B96: 1 | C96: 重庆长安汽车股份有限公司 | D96: 42561 | E96: 0
B97: 2 | C97: 赛力斯汽车有限公司 | D97: 8970 | E97: 7870
B98: 3 | C98: 重庆瑞驰汽车实业有限公司 | D98: 7036 | E98: 0
B99: 4 | C99: 华晨鑫源重庆汽车有限公司 | D99: 6973 | E99: 2931
B100: 5 | C100: 重庆睿蓝汽车制造有限公司 | D100: 5463 | E100: 4950
B101: 6 | C101: 庆铃汽车股份有限公司 | D101: 703 | E101: 996
B102: 7 | C102: 上汽红岩汽车有限公司 | D102: 539 | E102: 993
A103: 四川省 | B103: 小计 | D103: =SUM(D104:D106) -> 9950 | E103: =SUM(E104:E106) -> 2558
B104: 1 | C104: 吉利四川商用车有限公司 | D104: 7748 | E104: 0
B105: 2 | C105: 成都大运汽车集团有限公司 | D105: 2188 | E105: 2558
B106: 3 | C106: 成都广通汽车有限公司 | D106: 14 | E106: 0
A107: 贵州省 | B107: 小计 | D107: =SUM(D108) -> 1249 | E107: =SUM(E108) -> 0
B108: 1 | C108: 奇瑞万达贵州客车股份有限公司 | D108: 1249 | E108: 0
A109: 云南省 | B109: 小计 | D109: =SUM(D110) -> 1733 | E109: =SUM(E110) -> 0
B110: 1 | C110: 北汽云南瑞丽汽车有限公司 | D110: 1733 | E110: 0
A111: 陕西省 | B111: 小计 | D111: =SUM(D112:D113) -> 258232 | E111: =SUM(E112:E113) -> 181156
B112: 1 | C112: 比亚迪汽车有限公司 | D112: 257528 | E112: 181156
B113: 2 | C113: 陕西汽车集团股份有限公司 | D113: 704 | E113: 0
